[Event "94th FRA-ch 2019"]
[Site "Chartres"]
[Date "2019.08.21"]
[Round "5.1"]
[White "Cornette, Matthieu"]
[Black "Favarel, Julien"]
[Result "1/2-1/2"]
[ECO "A13"]
[WhiteElo "2555"]
[BlackElo "2333"]
[Annotator "ChessBase"]
[PlyCount "160"]
[EventDate "2019.08.17"]
[EventType "tourn"]
[EventCountry "FRA"]
[SourceTitle "playchess.com"]
[Source "ChessBase"]
[SourceQuality "1"]
[TimeControl "40/5400+30:1800+30"]

1. c4 {[%emt 0:00:00]} e6 {[%emt 0:00:00]} 2. g3 {[%emt 0:00:00]} d5 {[%emt 0:00:23]} 3. Bg2 {[%emt 0:00:12]} Nf6 {[%emt 0:04:59]} 4. Nf3 {[%emt 0:00:43]} dxc4 {[%emt 0:01:24]} 5. O-O {[%emt 0:00:30]} c5 {[%emt 0:05:24]} 6. Na3 {[%emt 0:01:31]} Nc6 {[%emt 0:00:25]} 7. Nxc4 {[%emt 0:00:39]} Bd7 {[%emt 0:01:31]} 8. b3 {[%emt 0:05:14]} Be7 {[%emt 0:00:38]} 9. Bb2 {[%emt 0:00:55]} O-O {[%emt 0:00:23]} 10. a4 {[%emt 0:06:27]} Qc7 {[%emt 0:10:01]} 11. Nfe5 {[%emt 0:01:52]} Rfd8 {[%emt 0:03:07]} 12. e3 {[%emt 0:00:33]} Nxe5 {[%emt 0:10:19]} 13. Nxe5 {[%emt 0:25:07]} Be8 {[%emt 0:12:31]} 14. Rc1 {[%emt 0:01:00]} Rac8 {[%emt 0:10:22]} 15. b4 {[%emt 0:09:27]} Nd7 {[%emt 0:13:45]} 16. Nxd7 {[%emt 0:03:52]} Qxd7 {[%emt 0:00:20]} 17. Qg4 {[%emt 0:00:46]} g6 {[%emt 0:00:14]} 18. bxc5 {[%emt 0:02:51]} Rxc5 {[%emt 0:05:45]} 19. Rxc5 {[%emt 0:06:41]} Bxc5 {[%emt 0:00:05]} 20. Bc3 {[%emt 0:03:31]} b6 {[%emt 0:04:05]} 21. a5 {[%emt 0:06:12]} Be7 {[%emt 0:01:12]} 22. Rb1 {[%emt 0:04:33]} Qc7 {[%emt 0:00:51]} 23. h4 {[%emt 0:04:04]} h5 {[%emt 0:03:42]} 24. Qe4 {[%emt 0:00:40]} Rd5 {[%emt 0:01:25]} 25. axb6 {[%emt 0:01:29]} axb6 {[%emt 0:00:03]} 26. Ra1 {[%emt 0:00:29]} Rd8 {[%emt 0:02:57]} 27. Be5 {[%emt 0:02:30]} Qd7 {[%emt 0:01:31]} 28. Bd4 {[%emt 0:02:02]} Bc5 {[%emt 0:00:15]} 29. Bc3 {[%emt 0:00:11]} Qc7 {[%emt 0:01:00]} 30. g4 {[%emt 0:00:26]} hxg4 {[%emt 0:02:51]} 31. Qxg4 {[%emt 0:00:09]} f5 {[%emt 0:01:55]} 32. Qg5 {[%emt 0:00:46]} Be7 {[%emt 0:00:47]} 33. Qh6 {[%emt 0:01:16]} e5 {[%emt 0:00:11]} 34. h5 {[%emt 0:02:19]} Bf6 {[%emt 0:01:22]} 35. hxg6 {[%emt 0:01:18]} Qg7 {[%emt 0:00:12]} 36. Qxg7+ {[%emt 0:02:36]} Kxg7 {[%emt 0:01:02]} 37. Ra7+ {[%emt 0:00:12]} Rd7 {[%emt 0:00:48]} 38. Ra8 {[%emt 0:02:52]} Bxg6 {[%emt 0:00:20]} 39. Rb8 {[%emt 0:00:05]} e4 {[%emt 0:00:48]} 40. Rxb6 {[%emt 0:03:08]} Bxc3 {[%emt 0:00:04]} 41. dxc3 {[%emt 0:30:04]} Rc7 {[%emt 0:04:02]} 42. Rb3 {[%emt 0:00:00]} Kf6 {[%emt 0:01:54]} 43. Bh3 {[%emt 0:00:00]} Kg5 {[%emt 0:01:02]} 44. Kg2 {[%emt 0:00:00]} Rc5 {[%emt 0:01:45]} 45. Kg3 {[%emt 0:00:00]} Bh5 {[%emt 0:02:56]} 46. Bf1 {[%emt 0:00:00]} Bf7 {[%emt 0:05:38]} 47. c4 {[%emt 0:00:00]} Rc8 {[%emt 0:03:04]} 48. Rb4 {[%emt 0:00:00]} Rc7 {[%emt 0:03:52]} 49. f4+ {[%emt 0:00:00]} exf3 {[%emt 0:00:09]} 50. Kxf3 {[%emt 0:00:00]} Be6 {[%emt 0:02:31]} 51. Bd3 {[%emt 0:00:00]} Rc8 {[%emt 0:01:27]} 52. Rb5 {[%emt 0:00:00]} Bxc4 {[%emt 0:01:08]} 53. Rxf5+ {[%emt 0:00:00]} Kh6 {[%emt 0:00:16]} 54. Bxc4 {[%emt 0:00:00]} Rxc4 {[%emt 0:00:07]} 55. Rf4 {[%emt 0:00:00]} Rc8 {[%emt 0:02:59]} 56. Rg4 {[%emt 0:00:00]} Rf8+ {[%emt 0:02:21]} 57. Ke4 {[%emt 0:00:00]} Kh5 {[%emt 0:00:54]} 58. Rg3 {[%emt 0:00:00]} Re8+ {[%emt 0:00:18]} 59. Kf5 {[%emt 0:00:00]} Rf8+ {[%emt 0:00:04]} 60. Ke5 {[%emt 0:00:00]} Re8+ {[%emt 0:00:10]} 61. Kd4 {[%emt 0:00:00]} Rd8+ {[%emt 0:00:05]} 62. Kc4 {[%emt 0:00:00]} Re8 {[%emt 0:00:54]} 63. Kd3 {[%emt 0:00:00]} Rd8+ {[%emt 0:00:07]} 64. Ke2 {[%emt 0:00:00]} Re8 {[%emt 0:00:43]} 65. Rg1 {[%emt 0:00:00]} Kh4 {[%emt 0:01:05]} 66. Rg2 {[%emt 0:00:00]} Kh5 {[%emt 0:00:35]} 67. Rg3 {[%emt 0:00:00]} Kh4 {[%emt 0:00:36]} 68. Kf2 {[%emt 0:00:00]} Kh5 {[%emt 0:00:47]} 69. Rg7 {[%emt 0:00:00]} Kh6 {[%emt 0:00:51]} 70. Rg1 {[%emt 0:00:00]} Kh5 {[%emt 0:00:07]} 71. Kf3 {[%emt 0:00:42]} Rf8+ {[%emt 0:00:07]} 72. Ke2 {[%emt 0:00:02]} Re8 {[%emt 0:00:09]} 73. Rg2 {[%emt 0:00:03]} Kh4 {[%emt 0:02:05]} 74. Rg1 {[%emt 0:00:25]} Kh5 {[%emt 0:00:18]} 75. Rg3 {[%emt 0:00:03]} Kh4 {[%emt 0:00:55]} 76. Rg6 {[%emt 0:00:34]} Kh5 {[%emt 0:00:07]} 77. Rd6 {[%emt 0:00:03]} Kg5 {[%emt 0:00:25]} 78. Kd3 {[%emt 0:00:01]} Kf5 {[%emt 0:00:22]} 79. Kd4 {[%emt 0:00:03]} Re4+ {[%emt 0:00:13]} 80. Kd3 {[%emt 0:00:02]} Re8 {[%emt 0:00:18]} 1/2-1/2

[Event "94th FRA-ch 2019"]
[Site "Chartres"]
[Date "2019.08.21"]
[Round "5.4"]
[White "Maze, Sebastien"]
[Black "Gozzoli, Yannick"]
[Result "1/2-1/2"]
[ECO "C77"]
[WhiteElo "2554"]
[BlackElo "2614"]
[Annotator "RC"]
[PlyCount "91"]
[EventDate "2019.08.17"]
[EventType "tourn"]
[EventCountry "FRA"]
[SourceTitle "playchess.com"]
[Source "ChessBase"]
[SourceQuality "1"]
[TimeControl "40/5400+30:1800+30"]

1. e4 {[%emt 0:00:00]} e5 {[%emt 0:00:00]} 2. Nf3 {[%emt 0:00:00]} Nc6 {[%emt 0:00:00]} 3. Bb5 {[%emt 0:00:44]} a6 {[%emt 0:00:06]} 4. Ba4 {[%emt 0:00:15]} Nf6 {[%emt 0:00:09]} 5. Nc3 {[%emt 0:00:39]} Bd6 {[%emt 0:08:09]} 6. d3 {[%emt 0:01:22]} h6 {[%emt 0:11:55]} 7. a3 {[%emt 0:01:09]} b5 {[%emt 0:08:06]} 8. Bb3 {[%emt 0:00:03]} Bb7 {[%emt 0:00:27]} 9. Nd5 {[%emt 0:03:37]} Bc5 {[%emt 0:08:32]} 10. c3 {[%emt 0:06:00]} d6 {[%emt 0:00:29]} 11. Nxf6+ {[%emt 0:00:07]} Qxf6 {[%emt 0:00:05]} 12. Bd5 {[%emt 0:00:02]} Rb8 {[%emt 0:04:44]} 13. b4 {[%emt 0:02:08]} Bb6 {[%emt 0:00:17]} 14. a4 {[%emt 0:02:19]} Nd8 {[%emt 0:02:10]} 15. Bxb7 {[%emt 0:06:47]} Rxb7 {[%emt 0:00:37]} 16. axb5 {[%emt 0:00:05]} axb5 {[%emt 0:00:05]} 17. Be3 {[%emt 0:00:05]} O-O {[%emt 0:04:44]} 18. Ra6 {[%emt 0:05:09]} Ne6 {[%emt 0:07:53]} 19. O-O {[%emt 0:00:44]} Rd8 {[%emt 0:19:24]} 20. d4 {[%emt 0:25:26]} exd4 {[%emt 0:01:22]} 21. cxd4 {[%emt 0:00:09]} d5 {[%emt 0:00:50]} 22. e5 {[%emt 0:00:22]} Qe7 {[%emt 0:00:24]} 23. Qd2 {[%emt 0:01:57]} Rbb8 {[%emt 0:05:36]} 24. Rfa1 {[%emt 0:04:39]} Qf8 {[%emt 0:02:02]} 25. Nh4 {[%emt 0:04:25]} Ra8 {[%emt 0:01:17]} 26. Rxa8 {[%emt 0:04:18]} Rxa8 {[%emt 0:00:21]} 27. Rb1 {[%emt 0:00:01]} Ra3 {[%emt 0:01:29]} 28. Nf5 {[%emt 0:00:49]} Qa8 {[%emt 0:00:57]} 29. h4 {[%emt 0:05:27]} Ra1 {[%emt 0:03:19]} 30. Rxa1 {[%emt 0:01:42]} Qxa1+ {[%emt 0:00:06]} 31. Kh2 {[%emt 0:00:01]} Qa8 {[%emt 0:04:34]} 32. Qe2 {[%emt 0:04:57]} Qe8 {[%emt 0:00:51]} 33. Qg4 {[%emt 0:02:32]} Kh7 {[%emt 0:00:57]} 34. Qf3 {[%emt 0:03:11]} Qd7 {[%emt 0:01:18]} 35. Qh5 {[%emt 0:01:18]} c6 {[%emt 0:00:55]} 36. Qg4 {[%emt 0:01:36]} Qe8 {[%emt 0:01:18]} 37. Nd6 {[%emt 0:02:29]} Qf8 {[%emt 0:00:21]} 38. f4 {[%emt 0:01:38]} Bc7 {[%emt 0:00:07]} 39. f5 {[%emt 0:05:55]} Bxd6 {[%emt 0:00:07]} 40. fxe6 {[%emt 0:00:04]} Bxb4 {[%emt 0:00:08]} 41. Qf5+ {[%emt 0:32:47]} Kg8 {[%emt 0:08:45]} 42. exf7+ {[%emt 0:00:00]} Qxf7 {[%emt 0:00:05]} 43. Qc8+ {[%emt 0:00:00]} Kh7 {[%emt 0:04:33]} 44. Qxc6 {[%emt 0:00:00]} Be7 {[%emt 0:00:06]} 45. Qxb5 {[%emt 0:00:00]} Bxh4 {[%emt 0:22:50]} 46. Qd3+ {[%emt 0:06:02]} 1/2-1/2

[Event "94th FRA-ch 2019"]
[Site "Chartres"]
[Date "2019.08.21"]
[Round "5.5"]
[White "Feller, Sebastien"]
[Black "Gharamian, Tigran"]
[Result "1/2-1/2"]
[ECO "C45"]
[WhiteElo "2577"]
[BlackElo "2586"]
[Annotator "ChessBase"]
[PlyCount "57"]
[EventDate "2019.08.17"]
[EventType "tourn"]
[EventCountry "FRA"]
[SourceTitle "playchess.com"]
[Source "ChessBase"]
[SourceQuality "1"]
[TimeControl "40/5400+30:1800+30"]

1. e4 {[%emt 1:30:30]} e5 {[%emt 0:00:00]} 2. Nf3 {[%emt 0:01:31]} Nc6 {[%emt 0:00:19]} 3. d4 {[%emt 0:04:08]} exd4 {[%emt 1:31:11]} 4. Nxd4 {[%emt 0:00:08]} Nf6 {[%emt 0:03:48]} 5. Nxc6 {[%emt 0:01:57]} bxc6 {[%emt 0:00:38]} 6. Qe2 {[%emt 0:00:22]} Qe7 {[%emt 0:08:09]} 7. Nc3 {[%emt 0:06:34]} Rb8 {[%emt 0:13:34]} 8. Qe3 {[%emt 0:05:00]} Qc5 {[%emt 0:02:12]} 9. Qg3 {[%emt 0:13:46]} g6 {[%emt 0:04:57]} 10. Bd3 {[%emt 0:54:52]} d6 {[%emt 0:05:37]} 11. O-O {[%emt 0:01:36]} Bg7 {[%emt 0:02:23]} 12. a3 {[%emt 0:05:06]} Ng4 {[%emt 0:05:54]} 13. h3 {[%emt 0:05:54]} Be5 {[%emt 0:00:59]} 14. Bf4 {[%emt 0:10:06]} Bxf4 {[%emt 0:00:32]} 15. Qxf4 {[%emt 0:00:09]} Qe5 {[%emt 0:01:04]} 16. Qxe5+ {[%emt 0:00:44]} Nxe5 {[%emt 0:00:07]} 17. b4 {[%emt 0:00:49]} a5 {[%emt 0:06:27]} 18. Rab1 {[%emt 0:03:20]} axb4 {[%emt 0:00:43]} 19. axb4 {[%emt 0:00:41]} O-O {[%emt 0:41:30]} 20. b5 {[%emt 0:01:30]} Nxd3 {[%emt 0:39:59]} 21. cxd3 {[%emt 0:01:37]} cxb5 {[%emt 0:00:31]} 22. Nxb5 {[%emt 0:01:20]} Ba6 {[%emt 0:00:17]} 23. Nxc7 {[%emt 0:00:20]} Bxd3 {[%emt 0:00:16]} 24. Rxb8 {[%emt 0:00:07]} Rxb8 {[%emt 0:00:03]} 25. Re1 {[%emt 0:00:10]} Bc4 {[%emt 0:00:57]} 26. Rd1 {[%emt 0:04:33]} Rc8 {[%emt 0:00:52]} 27. Nd5 {[%emt 0:00:30]} Bxd5 {[%emt 0:00:12]} 28. Rxd5 {[%emt 0:00:08]} Rc6 {[%emt 0:00:24]} 29. e5 1/2-1/2

[Event "94th FRA-ch 2019"]
[Site "Chartres"]
[Date "2019.08.22"]
[Round "6.1"]
[White "Edouard, Romain"]
[Black "Feller, Sebastien"]
[Result "1/2-1/2"]
[ECO "D00"]
[WhiteElo "2650"]
[BlackElo "2577"]
[Annotator "ChessBase"]
[PlyCount "39"]
[EventDate "2019.08.17"]
[EventType "tourn"]
[EventCountry "FRA"]
[SourceTitle "playchess.com"]
[Source "ChessBase"]
[SourceQuality "1"]
[TimeControl "40/5400+30:1800+30"]

1. d4 {[%emt 0:00:00]} d5 {[%emt 0:11:48]} 2. Bf4 {[%emt 0:00:00]} Nf6 {[%emt 0:02:59]} 3. e3 {[%emt 0:00:00]} c5 {[%emt 0:09:29]} 4. c3 {[%emt 0:00:32]} Nc6 {[%emt 0:00:05]} 5. Nd2 {[%emt 0:00:07]} Qb6 {[%emt 0:08:12]} 6. Qb3 {[%emt 0:02:19]} c4 {[%emt 0:07:15]} 7. Qc2 {[%emt 0:00:17]} g6 {[%emt 0:14:16]} 8. e4 {[%emt 0:08:23]} Qd8 {[%emt 0:09:42]} 9. Bg5 {[%emt 0:04:44]} Bg7 {[%emt 0:02:51]} 10. Bxf6 {[%emt 0:11:04]} Bxf6 {[%emt 0:00:25]} 11. exd5 {[%emt 0:00:20]} Qxd5 {[%emt 0:00:48]} 12. Nxc4 {[%emt 0:03:13]} e5 {[%emt 0:15:53]} 13. Ne3 {[%emt 0:08:31]} Qa5 {[%emt 0:00:42]} 14. d5 {[%emt 0:05:35]} Nd4 {[%emt 0:04:56]} 15. Qd1 {[%emt 0:08:00]} O-O {[%emt 0:02:25]} 16. Ne2 {[%emt 0:08:18]} Nf5 {[%emt 0:04:24]} 17. Nxf5 {[%emt 0:03:23]} Bxf5 {[%emt 0:00:02]} 18. Ng3 {[%emt 0:00:04]} e4 {[%emt 0:00:04]} 19. Qd2 {[%emt 0:10:46]} Rac8 {[%emt 0:00:09]} 20. Nxf5 {[%emt 0:04:37]} 1/2-1/2

[Event "94th FRA-ch 2019"]
[Site "Chartres"]
[Date "2019.08.22"]
[Round "6.2"]
[White "Gharamian, Tigran"]
[Black "Fressinet, Laurent"]
[Result "1/2-1/2"]
[ECO "C45"]
[WhiteElo "2586"]
[BlackElo "2625"]
[Annotator "ChessBase"]
[PlyCount "35"]
[EventDate "2019.08.17"]
[EventType "tourn"]
[EventCountry "FRA"]
[SourceTitle "playchess.com"]
[Source "ChessBase"]
[SourceQuality "1"]
[TimeControl "40/5400+30:1800+30"]

1. e4 {[%emt 0:00:00]} e5 {[%emt 0:00:00]} 2. Nf3 {[%emt 0:00:00]} Nc6 {[%emt 0:00:00]} 3. d4 {[%emt 0:00:00]} exd4 {[%emt 0:00:00]} 4. Nxd4 {[%emt 0:00:00]} Nf6 {[%emt 0:00:00]} 5. Nxc6 {[%emt 0:00:01]} bxc6 {[%emt 0:00:00]} 6. e5 {[%emt 0:00:06]} Qe7 {[%emt 0:00:02]} 7. Qe2 {[%emt 0:00:08]} Nd5 {[%emt 0:00:05]} 8. h4 {[%emt 0:00:21]} d6 {[%emt 0:00:31]} 9. c4 {[%emt 0:00:45]} Nb6 {[%emt 0:00:52]} 10. exd6 {[%emt 0:00:43]} cxd6 {[%emt 0:00:33]} 11. Be3 {[%emt 0:00:12]} d5 {[%emt 0:01:59]} 12. Nd2 {[%emt 0:04:58]} dxc4 {[%emt 0:02:16]} 13. g3 {[%emt 0:10:27]} Be6 {[%emt 0:02:50]} 14. Bg2 {[%emt 0:00:36]} Qc7 {[%emt 0:01:50]} 15. O-O {[%emt 0:01:29]} Be7 {[%emt 0:02:37]} 16. b3 {[%emt 0:13:59]} O-O {[%emt 0:09:23]} 17. bxc4 {[%emt 0:13:53]} Rad8 {[%emt 0:00:48]} 18. Rac1 {[%emt 0:51:22]} 1/2-1/2

[Event "94th FRA-ch 2019"]
[Site "Chartres"]
[Date "2019.08.22"]
[Round "6.3"]
[White "Favarel, Julien"]
[Black "Lagarde, Maxime"]
[Result "0-1"]
[ECO "B56"]
[WhiteElo "2333"]
[BlackElo "2626"]
[Annotator "ChessBase"]
[PlyCount "86"]
[EventDate "2019.08.17"]
[EventType "tourn"]
[EventCountry "FRA"]
[SourceTitle "playchess.com"]
[Source "ChessBase"]
[SourceQuality "1"]
[TimeControl "40/5400+30:1800+30"]

1. e4 {[%emt 0:00:00]} c5 {[%emt 0:00:00]} 2. Nf3 {[%emt 0:00:00]} d6 {[%emt 0:00:00]} 3. d4 {[%emt 0:00:00]} cxd4 {[%emt 0:00:00]} 4. Nxd4 {[%emt 0:00:00]} Nf6 {[%emt 0:00:00]} 5. Nc3 {[%emt 0:00:00]} Nc6 {[%emt 0:00:11]} 6. f3 {[%emt 0:04:04]} e5 {[%emt 0:00:58]} 7. Nb3 {[%emt 0:00:14]} Be7 {[%emt 0:00:14]} 8. Be3 {[%emt 0:00:48]} Be6 {[%emt 0:00:12]} 9. Qd2 {[%emt 0:04:58]} d5 {[%emt 0:00:25]} 10. exd5 {[%emt 0:00:23]} Nxd5 {[%emt 0:00:05]} 11. Nxd5 {[%emt 0:00:19]} Qxd5 {[%emt 0:00:04]} 12. Qxd5 {[%emt 0:00:46]} Bxd5 {[%emt 0:00:05]} 13. O-O-O {[%emt 0:00:37]} O-O-O {[%emt 0:00:05]} 14. Bb5 {[%emt 0:00:51]} Kc7 {[%emt 0:05:43]} 15. Rd2 {[%emt 0:37:29]} a6 {[%emt 0:07:39]} 16. Be2 {[%emt 0:01:46]} Nb4 {[%emt 0:02:11]} 17. Kb1 {[%emt 0:16:50]} Be6 {[%emt 0:09:14]} 18. Rxd8 {[%emt 0:11:23]} Rxd8 {[%emt 0:00:36]} 19. Rd1 {[%emt 0:03:09]} Bf5 {[%emt 0:09:34]} 20. Na1 {[%emt 0:04:15]} Nd5 {[%emt 0:01:13]} 21. Bf2 {[%emt 0:03:39]} a5 {[%emt 0:07:14]} 22. a3 {[%emt 0:02:34]} Bxa3 {[%emt 0:03:45]} 23. Bg3 {[%emt 0:02:42]} f6 {[%emt 0:00:14]} 24. Nb3 {[%emt 0:03:04]} Bxc2+ {[%emt 0:02:57]} 25. Kxc2 {[%emt 0:00:05]} Ne3+ {[%emt 0:00:02]} 26. Kc1 {[%emt 0:00:41]} Bxb2+ {[%emt 0:00:23]} 27. Kxb2 {[%emt 0:00:24]} Nxd1+ {[%emt 0:00:04]} 28. Bxd1 {[%emt 0:00:55]} Rxd1 {[%emt 0:00:07]} 29. Nxa5 {[%emt 0:00:07]} Rg1 {[%emt 0:02:21]} 30. f4 {[%emt 0:00:22]} Rxg2+ {[%emt 0:01:20]} 31. Kc3 {[%emt 0:00:07]} b6 {[%emt 0:04:13]} 32. Nc4 {[%emt 0:00:35]} exf4 {[%emt 0:00:08]} 33. Bxf4+ {[%emt 0:00:02]} Kc6 {[%emt 0:00:08]} 34. Ne3 {[%emt 0:00:55]} Ra2 {[%emt 0:00:24]} 35. Nf5 {[%emt 0:00:46]} g5 {[%emt 0:02:15]} 36. Bd2 {[%emt 0:01:10]} Ra3+ {[%emt 0:02:32]} 37. Kd4 {[%emt 0:00:05]} Rh3 {[%emt 0:00:19]} 38. Ne7+ {[%emt 0:00:09]} Kd6 {[%emt 0:00:41]} 39. Nc8+ {[%emt 0:01:14]} Ke6 {[%emt 0:00:07]} 40. Nxb6 {[%emt 0:00:11]} Rxh2 {[%emt 0:00:05]} 41. Ke3 {[%emt 0:30:19]} h5 {[%emt 0:30:34]} 42. Be1 {[%emt 0:00:15]} h4 {[%emt 0:00:43]} 43. Nc4 {[%emt 0:00:20]} h3 {[%emt 0:02:54]} 0-1

[Event "94th FRA-ch 2019"]
[Site "Chartres"]
[Date "2019.08.22"]
[Round "6.4"]
[White "Maze, Sebastien"]
[Black "Cornette, Matthieu"]
[Result "1/2-1/2"]
[ECO "C45"]
[WhiteElo "2554"]
[BlackElo "2555"]
[Annotator "ChessBase"]
[PlyCount "35"]
[EventDate "2019.08.17"]
[EventType "tourn"]
[EventCountry "FRA"]
[SourceTitle "playchess.com"]
[Source "ChessBase"]
[SourceQuality "1"]
[TimeControl "40/5400+30:1800+30"]

1. e4 {[%emt 0:00:00]} e5 {[%emt 0:00:00]} 2. Nf3 {[%emt 0:00:00]} Nc6 {[%emt 0:00:00]} 3. d4 {[%emt 0:02:10]} exd4 {[%emt 0:00:19]} 4. Nxd4 {[%emt 0:01:24]} Qf6 {[%emt 0:04:11]} 5. Nb5 {[%emt 0:01:14]} Bc5 {[%emt 0:01:59]} 6. Qe2 {[%emt 0:06:41]} Bb6 {[%emt 0:01:35]} 7. N1c3 {[%emt 0:00:39]} Nge7 {[%emt 0:01:24]} 8. Be3 {[%emt 0:03:32]} Ba5 {[%emt 0:01:11]} 9. O-O-O {[%emt 0:08:44]} a6 {[%emt 0:04:50]} 10. Nd5 {[%emt 0:04:38]} Nxd5 {[%emt 0:00:23]} 11. exd5 {[%emt 0:00:20]} axb5 {[%emt 0:01:45]} 12. Bg5+ {[%emt 0:05:31]} Qe5 {[%emt 0:00:48]} 13. dxc6 {[%emt 0:01:17]} Qxe2 {[%emt 0:00:06]} 14. cxd7+ {[%emt 0:00:51]} Bxd7 {[%emt 0:00:05]} 15. Bxe2 {[%emt 0:00:05]} c6 {[%emt 0:01:33]} 16. a3 {[%emt 0:04:12]} Be6 {[%emt 0:01:46]} 17. c3 {[%emt 0:00:52]} O-O {[%emt 0:00:10]} 18. Be3 {[%emt 0:00:46]} 1/2-1/2

[Event "94th FRA-ch 2019"]
[Site "Chartres"]
[Date "2019.08.22"]
[Round "6.5"]
[White "Gozzoli, Yannick"]
[Black "Moussard, Jules"]
[Result "1/2-1/2"]
[ECO "A88"]
[WhiteElo "2614"]
[BlackElo "2595"]
[Annotator "ChessBase"]
[PlyCount "88"]
[EventDate "2019.08.17"]
[EventType "tourn"]
[EventCountry "FRA"]
[SourceTitle "playchess.com"]
[Source "ChessBase"]
[SourceQuality "1"]
[TimeControl "40/5400+30:1800+30"]

1. d4 {[%emt 0:00:00]} d6 {[%emt 0:00:00]} 2. Nf3 {[%emt 0:00:00]} g6 {[%emt 0:00:00]} 3. c4 {[%emt 0:00:00]} f5 {[%emt 0:00:00]} 4. Nc3 {[%emt 0:00:09]} Nf6 {[%emt 0:00:03]} 5. g3 {[%emt 0:00:04]} Bg7 {[%emt 0:00:04]} 6. Bg2 {[%emt 0:00:04]} O-O {[%emt 0:00:06]} 7. O-O {[%emt 0:00:04]} c6 {[%emt 0:00:16]} 8. Re1 {[%emt 0:00:05]} Ne4 {[%emt 0:09:43]} 9. Qc2 {[%emt 0:02:12]} Nxc3 {[%emt 0:00:42]} 10. bxc3 {[%emt 0:00:09]} e5 {[%emt 0:07:25]} 11. dxe5 {[%emt 0:00:37]} dxe5 {[%emt 0:00:10]} 12. Ba3 {[%emt 0:01:01]} Re8 {[%emt 0:01:15]} 13. Rad1 {[%emt 0:01:34]} Qf6 {[%emt 0:04:09]} 14. e4 {[%emt 0:11:27]} f4 {[%emt 0:36:34]} 15. Rd6 {[%emt 0:09:18]} Be6 {[%emt 0:00:19]} 16. Bh3 {[%emt 0:03:57]} Bf8 {[%emt 0:00:42]} 17. Rxe6 {[%emt 0:01:01]} Rxe6 {[%emt 0:00:05]} 18. Bxe6+ {[%emt 0:04:41]} Qxe6 {[%emt 0:00:05]} 19. Bxf8 {[%emt 0:00:04]} Kxf8 {[%emt 0:00:02]} 20. Qb3 {[%emt 0:00:05]} b6 {[%emt 0:03:33]} 21. Qa3+ {[%emt 0:05:22]} c5 {[%emt 0:00:38]} 22. Qa4 {[%emt 0:05:38]} h6 {[%emt 0:04:10]} 23. Rd1 {[%emt 0:00:45]} Nc6 {[%emt 0:00:05]} 24. Rd5 {[%emt 0:00:14]} g5 {[%emt 0:02:57]} 25. Qd1 {[%emt 0:09:00]} Ke7 {[%emt 0:00:06]} 26. Ne1 {[%emt 0:00:06]} Nd8 {[%emt 0:08:48]} 27. Nd3 {[%emt 0:03:13]} Nf7 {[%emt 0:00:16]} 28. Qh5 {[%emt 0:04:54]} Rg8 {[%emt 0:04:10]} 29. Kg2 {[%emt 0:04:52]} Kf6 {[%emt 0:02:14]} 30. h3 {[%emt 0:03:26]} Kg7 {[%emt 0:01:06]} 31. Kh2 {[%emt 0:09:29]} Re8 {[%emt 0:02:06]} 32. Kg2 {[%emt 0:01:46]} Re7 {[%emt 0:00:45]} 33. Qd1 {[%emt 0:00:06]} Qg6 {[%emt 0:00:30]} 34. Qe2 {[%emt 0:04:52]} Nd6 {[%emt 0:01:43]} 35. Nxe5 {[%emt 0:02:46]} Qxe4+ {[%emt 0:00:06]} 36. Qf3 {[%emt 0:00:24]} Re6 {[%emt 0:02:18]} 37. gxf4 {[%emt 0:02:15]} gxf4 {[%emt 0:00:39]} 38. Qxe4 {[%emt 0:00:03]} Nxe4 {[%emt 0:00:03]} 39. Rd7+ {[%emt 0:00:08]} Kg8 {[%emt 0:02:52]} 40. Nd3 {[%emt 0:00:12]} Rf6 {[%emt 0:09:15]} 41. Kf3 {[%emt 0:44:27]} Re6 {[%emt 0:30:30]} 42. Kg2 {[%emt 0:00:30]} Kf8 {[%emt 0:00:30]} 43. Rxa7 Nxc3 44. Rb7 {[%emt 0:01:00]} Re4 {[%emt 0:01:00]} 1/2-1/2

[Event "94th FRA-ch 2019"]
[Site "Chartres"]
[Date "2019.08.23"]
[Round "7.4"]
[White "Moussard, Jules"]
[Black "Gharamian, Tigran"]
[Result "1/2-1/2"]
[ECO "B93"]
[WhiteElo "2595"]
[BlackElo "2586"]
[Annotator "ChessBase"]
[PlyCount "81"]
[EventDate "2019.08.17"]
[EventType "tourn"]
[EventCountry "FRA"]
[SourceTitle "playchess.com"]
[Source "ChessBase"]
[SourceQuality "1"]
[TimeControl "40/5400+30:1800+30"]

1. e4 {[%emt 0:00:00]} c5 {[%emt 0:00:00]} 2. Nf3 {[%emt 0:00:00]} d6 {[%emt 0:00:00]} 3. d4 {[%emt 0:00:00]} cxd4 {[%emt 0:00:00]} 4. Nxd4 {[%emt 0:00:06]} Nf6 {[%emt 0:00:05]} 5. Nc3 {[%emt 0:00:06]} a6 {[%emt 0:00:18]} 6. Bd3 {[%emt 0:01:43]} g6 {[%emt 0:06:30]} 7. f4 {[%emt 0:08:16]} Bg7 {[%emt 0:00:44]} 8. Nf3 {[%emt 0:00:45]} Qb6 {[%emt 0:12:56]} 9. Qe2 {[%emt 0:09:20]} Nc6 {[%emt 0:06:48]} 10. Rb1 {[%emt 0:08:25]} O-O {[%emt 0:06:33]} 11. Be3 {[%emt 0:07:49]} Qc7 {[%emt 0:14:21]} 12. O-O {[%emt 0:01:56]} b5 {[%emt 0:00:09]} 13. Kh1 {[%emt 0:09:59]} Bb7 {[%emt 0:09:22]} 14. f5 {[%emt 0:04:38]} e6 {[%emt 0:04:03]} 15. Qd2 {[%emt 0:02:30]} Ne5 {[%emt 0:11:57]} 16. Nxe5 {[%emt 0:02:19]} dxe5 {[%emt 0:00:05]} 17. fxe6 {[%emt 0:00:10]} fxe6 {[%emt 0:00:05]} 18. a3 {[%emt 0:01:15]} Rad8 {[%emt 0:03:05]} 19. Qe2 {[%emt 0:00:17]} Nh5 {[%emt 0:00:24]} 20. g3 {[%emt 0:00:39]} Nf6 {[%emt 0:00:25]} 21. h3 {[%emt 0:01:11]} Nd7 {[%emt 0:03:46]} 22. Kh2 {[%emt 0:01:47]} Nc5 {[%emt 0:00:54]} 23. Rxf8+ {[%emt 0:01:21]} Rxf8 {[%emt 0:00:40]} 24. Rf1 {[%emt 0:00:45]} Rd8 {[%emt 0:01:43]} 25. Qg4 {[%emt 0:01:37]} Nxd3 {[%emt 0:02:51]} 26. Qxe6+ {[%emt 0:02:25]} Kh8 {[%emt 0:00:04]} 27. Rf7 {[%emt 0:07:16]} Bc8 {[%emt 0:01:08]} 28. Qd5 {[%emt 0:03:21]} Rd7 {[%emt 0:10:24]} 29. Rxd7 {[%emt 0:00:08]} Qxd7 {[%emt 0:00:07]} 30. Qxd7 {[%emt 0:00:06]} Bxd7 {[%emt 0:00:04]} 31. cxd3 {[%emt 0:00:05]} Kg8 {[%emt 0:00:34]} 32. g4 {[%emt 0:00:39]} Kf7 {[%emt 0:00:52]} 33. g5 {[%emt 0:00:22]} Bf8 {[%emt 0:00:35]} 34. b4 {[%emt 0:00:20]} a5 {[%emt 0:01:44]} 35. bxa5 {[%emt 0:03:21]} b4 {[%emt 0:00:05]} 36. axb4 {[%emt 0:02:44]} Bxb4 {[%emt 0:00:03]} 37. Nd1 {[%emt 0:03:35]} Bxa5 {[%emt 0:00:57]} 38. Nb2 {[%emt 0:00:03]} Bc3 {[%emt 0:01:40]} 39. Nd1 {[%emt 0:00:04]} Be1 {[%emt 0:00:48]} 40. Kg2 {[%emt 0:00:05]} Ba4 {[%emt 0:00:29]} 41. Kf1 {[%emt 0:33:50]} 1/2-1/2